[Event "December 5 Early 2023"]
[Site "https://www.chess.com"]
[Date "2023.12.05"]
[Round "10"]
[White "Harutjunyan, Gevorg"]
[Black "Zou, Chen"]
[Result "1-0"]
[Board "26"]
[TimeControl "180+1"]
[WhiteFideId "13300873"]
[BlackFideId "8610959"]
[WhiteElo "2890"]
[BlackElo "2756"]
[WhiteTeam "ARM"]
[BlackTeam "CHN"]
[WhiteClock "0:00:06"]
[BlackClock "0:00:03"]

1. e4 {[%clk 0:03:00]}  e5 {[%clk 0:02:56]} 2. Nf3 {[%clk 0:03:00]}  Nc6 {[%clk 0:02:56]} 3. d4 {[%clk 0:03:00]}  exd4 {[%clk 0:02:56]} 4. Nxd4 {[%clk 0:03:01]}  Nf6 {[%clk 0:02:57]} 5. Nc3 {[%clk 0:03:01]}  Bb4 {[%clk 0:02:56]} 6. Nxc6 {[%clk 0:03:02]}  bxc6 {[%clk 0:02:57]} 7. Bd3 {[%clk 0:03:02]}  d5 {[%clk 0:02:56]} 8. exd5 {[%clk 0:03:03]}  O-O {[%clk 0:02:57]} 9. O-O {[%clk 0:03:04]}  cxd5 {[%clk 0:02:57]} 10. h3 {[%clk 0:03:04]}  c6 {[%clk 0:02:58]} 11. Qf3 {[%clk 0:03:04]}  Bd6 {[%clk 0:02:58]} 12. Bf4 {[%clk 0:03:03]}  Rb8 {[%clk 0:02:57]} 13. b3 {[%clk 0:03:03]}  Rb4 {[%clk 0:02:55]} 14. Ne2 {[%clk 0:03:03]}  Re8 {[%clk 0:02:54]} 15. a3 {[%clk 0:02:58]}  Rb7 {[%clk 0:02:40]} 16. Nd4 {[%clk 0:02:58]}  Bxf4 {[%clk 0:02:32]} 17. Qxf4 {[%clk 0:02:56]}  c5 {[%clk 0:02:33]} 18. Nb5 {[%clk 0:02:50]}  Re6 {[%clk 0:02:18]} 19. Rfe1 {[%clk 0:02:23]}  a6 {[%clk 0:02:16]} 20. Nc3 {[%clk 0:02:20]}  Rbe7 {[%clk 0:02:04]} 21. Rxe6 {[%clk 0:02:12]}  Rxe6 {[%clk 0:02:05]} 22. Qb8 {[%clk 0:01:53]}  Nd7 {[%clk 0:01:57]} 23. Qa7 {[%clk 0:01:42]}  Qb6 {[%clk 0:01:48]} 24. Qa8 {[%clk 0:01:31]}  Qb7 {[%clk 0:01:45]} 25. Qxb7 {[%clk 0:01:30]}  Bxb7 {[%clk 0:01:45]} 26. Bf5 {[%clk 0:01:30]}  Re7 {[%clk 0:01:46]} 27. Na4 {[%clk 0:01:07]}  c4 {[%clk 0:01:30]} 28. bxc4 {[%clk 0:00:39]}  dxc4 {[%clk 0:01:31]} 29. Rb1 {[%clk 0:00:39]}  Nf8 {[%clk 0:00:59]} 30. Nc5 {[%clk 0:00:36]}  Re5 {[%clk 0:00:42]} 31. Bxh7+ {[%clk 0:00:29]}  Kxh7 {[%clk 0:00:43]} 32. Nxb7 {[%clk 0:00:29]}  Re2 {[%clk 0:00:38]} 33. Rc1 {[%clk 0:00:26]}  Ne6 {[%clk 0:00:36]} 34. Nd6 {[%clk 0:00:26]}  Nd4 {[%clk 0:00:36]} 35. Nxc4 {[%clk 0:00:20]}  Re4 {[%clk 0:00:16]} 36. Kf1 {[%clk 0:00:12]}  Nb5 {[%clk 0:00:03]} 37. Nd2 {[%clk 0:00:13]}  Rd4 {[%clk 0:00:02]} 38. Nf3 {[%clk 0:00:10]}  Rc4 {[%clk 0:00:03]} 39. Ne5 {[%clk 0:00:08]}  Rc7 {[%clk 0:00:02]} 40. a4 {[%clk 0:00:08]}  Nd4 {[%clk 0:00:02]} 41. c3 {[%clk 0:00:08]}  Nb3 {[%clk 0:00:03]} 42. Rc2 {[%clk 0:00:07]}  Nd4 {[%clk 0:00:03]} 43. Rd2 {[%clk 0:00:07]}  Nb3 {[%clk 0:00:03]} 44. Rd7 {[%clk 0:00:05]}  Rxc3 {[%clk 0:00:02]} 45. Nxf7 {[%clk 0:00:03]}  Rc1+ {[%clk 0:00:02]} 46. Ke2 {[%clk 0:00:03]}  Rc2+ {[%clk 0:00:03]} 47. Ke3 {[%clk 0:00:03]}  Ra2 {[%clk 0:00:03]} 48. Ng5+ {[%clk 0:00:02]}  Kg6 {[%clk 0:00:03]} 49. Nf3 {[%clk 0:00:03]}  Nc5 {[%clk 0:00:03]} 50. Rd6+ {[%clk 0:00:03]}  Kf7 {[%clk 0:00:03]} 51. Ne5+ {[%clk 0:00:04]}  Ke7 {[%clk 0:00:03]} 52. Rc6 {[%clk 0:00:04]}  Ra3+ {[%clk 0:00:03]} 53. Kf4 {[%clk 0:00:03]}  Ne6+ {[%clk 0:00:04]} 54. Kg4 {[%clk 0:00:03]}  Rxa4+ {[%clk 0:00:04]} 55. Kg3 {[%clk 0:00:04]}  Nd4 {[%clk 0:00:03]} 56. Rg6 {[%clk 0:00:03]}  Kd8 {[%clk 0:00:02]} 57. f4 {[%clk 0:00:01]}  Ne2+ {[%clk 0:00:02]} 58. Kf3 {[%clk 0:00:02]}  Nxf4 {[%clk 0:00:03]} 59. Rxg7 {[%clk 0:00:02]}  Ne6 {[%clk 0:00:04]} 60. Ra7 {[%clk 0:00:02]}  Ke8 {[%clk 0:00:03]} 61. g4 {[%clk 0:00:02]}  a5 {[%clk 0:00:03]} 62. h4 {[%clk 0:00:02]}  Ra3+ {[%clk 0:00:04]} 63. Ke4 {[%clk 0:00:02]}  a4 {[%clk 0:00:05]} 64. g5 {[%clk 0:00:01]}  Ra1 {[%clk 0:00:05]} 65. Kf5 {[%clk 0:00:02]}  Nd4+ {[%clk 0:00:05]} 66. Kf6 {[%clk 0:00:02]}  Rf1+ {[%clk 0:00:04]} 67. Kg6 {[%clk 0:00:03]}  Ra1 {[%clk 0:00:04]} 68. h5 {[%clk 0:00:03]}  a3 {[%clk 0:00:03]} 69. h6 {[%clk 0:00:04]}  a2 {[%clk 0:00:04]} 70. h7 {[%clk 0:00:04]}  Rh1 {[%clk 0:00:04]} 71. Rxa2 {[%clk 0:00:05]}  Ne6 {[%clk 0:00:03]} 72. Ra8+ {[%clk 0:00:05]}  Ke7 {[%clk 0:00:04]} 73. h8=Q {[%clk 0:00:06]}  Nf4+ {[%clk 0:00:04]} 74. Kf5 {[%clk 0:00:07]}  Rf1 {[%clk 0:00:03]} 75. Qf6# {[%clk 0:00:06]} 1-0

[Event "December 5 Early 2023"]
[Site "https://www.chess.com"]
[Date "2023.12.05"]
[Round "10"]
[White "Sahakyan, Aleks"]
[Black "Baskakov, Egor"]
[Result "0-1"]
[Board "27"]
[TimeControl "180+1"]
[WhiteFideId "13316338"]
[BlackFideId "24197866"]
[WhiteElo "2732"]
[BlackElo "2888"]
[WhiteTeam "ARM"]
[BlackTeam "RUS"]
[WhiteClock "0:00:00"]
[BlackClock "0:00:02"]

1. e4 {[%clk 0:03:00]}  c5 {[%clk 0:02:59]} 2. Nc3 {[%clk 0:03:00]}  Nc6 {[%clk 0:02:59]} 3. Bb5 {[%clk 0:02:59]}  g6 {[%clk 0:02:56]} 4. Bxc6 {[%clk 0:02:59]}  dxc6 {[%clk 0:02:57]} 5. d3 {[%clk 0:02:55]}  e5 {[%clk 0:02:57]} 6. f4 {[%clk 0:02:53]}  exf4 {[%clk 0:02:58]} 7. Bxf4 {[%clk 0:02:53]}  Bg7 {[%clk 0:02:59]} 8. Nf3 {[%clk 0:02:53]}  Ne7 {[%clk 0:02:58]} 9. O-O {[%clk 0:02:54]}  h6 {[%clk 0:02:59]} 10. Qd2 {[%clk 0:02:47]}  g5 {[%clk 0:02:57]} 11. Be3 {[%clk 0:02:46]}  b6 {[%clk 0:02:56]} 12. Rad1 {[%clk 0:02:30]}  f5 {[%clk 0:02:40]} 13. d4 {[%clk 0:02:19]}  f4 {[%clk 0:02:29]} 14. Bf2 {[%clk 0:02:19]}  cxd4 {[%clk 0:02:04]} 15. Bxd4 {[%clk 0:02:15]}  O-O {[%clk 0:02:03]} 16. Bxg7 {[%clk 0:01:53]}  Qxd2 {[%clk 0:02:03]} 17. Rxd2 {[%clk 0:01:54]}  Kxg7 {[%clk 0:02:03]} 18. Rd6 {[%clk 0:01:55]}  Bg4 {[%clk 0:01:58]} 19. Ne5 {[%clk 0:01:55]}  Bh5 {[%clk 0:01:31]} 20. Nxc6 {[%clk 0:01:20]}  Nxc6 {[%clk 0:01:29]} 21. Rxc6 {[%clk 0:01:21]}  Rad8 {[%clk 0:01:27]} 22. Nd5 {[%clk 0:01:14]}  Rf7 {[%clk 0:01:19]} 23. c4 {[%clk 0:01:02]}  Be2 {[%clk 0:01:17]} 24. Re1 {[%clk 0:01:01]}  f3 {[%clk 0:01:11]} 25. gxf3 {[%clk 0:01:02]}  Bxf3 {[%clk 0:01:11]} 26. h3 {[%clk 0:00:36]}  h5 {[%clk 0:01:08]} 27. Nc7 {[%clk 0:00:29]}  Rd2 {[%clk 0:01:02]} 28. Ne6+ {[%clk 0:00:28]}  Kf6 {[%clk 0:00:33]} 29. Nd8+ {[%clk 0:00:26]}  Kg7 {[%clk 0:00:28]} 30. Nxf7 {[%clk 0:00:26]}  Kxf7 {[%clk 0:00:28]} 31. Rf1 {[%clk 0:00:09]}  Rg2+ {[%clk 0:00:14]} 32. Kh1 {[%clk 0:00:10]}  Rf2+ {[%clk 0:00:14]} 33. Kg1 {[%clk 0:00:11]}  Rg2+ {[%clk 0:00:14]} 34. Kh1 {[%clk 0:00:11]}  g4 {[%clk 0:00:04]} 35. hxg4 {[%clk 0:00:09]}  hxg4 {[%clk 0:00:05]} 36. Rc7+ {[%clk 0:00:02]}  Kf6 {[%clk 0:00:06]} 37. Rxa7 {[%clk 0:00:01]}  Ke5 {[%clk 0:00:04]} 38. Rf7 {[%clk 0:00:01]}  Rf2+ {[%clk 0:00:02]} 39. Kg1 {[%clk 0:00:01]}  Rg2+ {[%clk 0:00:02]} 40. Kh1 {[%clk 0:00:00]}  Rg3+ {[%clk 0:00:02]} 0-1

[Event "December 5 Early 2023"]
[Site "https://www.chess.com"]
[Date "2023.12.05"]
[Round "10"]
[White "Gabrielian, Artur"]
[Black "Bardyk, Artem"]
[Result "1-0"]
[Board "28"]
[TimeControl "180+1"]
[WhiteFideId "4131002"]
[BlackFideId "34349979"]
[WhiteElo "2732"]
[BlackElo "2875"]
[WhiteTeam "RUS"]
[BlackTeam "RUS"]
[WhiteClock "0:00:44"]
[BlackClock "0:00:05"]

1. e4 {[%clk 0:03:00]}  c6 {[%clk 0:02:58]} 2. d4 {[%clk 0:02:50]}  d5 {[%clk 0:02:59]} 3. e5 {[%clk 0:02:43]}  Bf5 {[%clk 0:02:58]} 4. h4 {[%clk 0:02:42]}  h5 {[%clk 0:02:58]} 5. Bd3 {[%clk 0:02:42]}  Bxd3 {[%clk 0:02:59]} 6. Qxd3 {[%clk 0:02:42]}  Qa5+ {[%clk 0:02:59]} 7. Nd2 {[%clk 0:02:42]}  e6 {[%clk 0:02:59]} 8. Nf3 {[%clk 0:02:42]}  Nh6 {[%clk 0:02:59]} 9. O-O {[%clk 0:02:41]}  Nf5 {[%clk 0:02:59]} 10. a4 {[%clk 0:02:41]}  Be7 {[%clk 0:02:50]} 11. Nb3 {[%clk 0:02:41]}  Qa6 {[%clk 0:02:48]} 12. Qd1 {[%clk 0:02:41]}  Nd7 {[%clk 0:02:42]} 13. g3 {[%clk 0:02:35]}  c5 {[%clk 0:02:37]} 14. Bg5 {[%clk 0:02:25]}  Bxg5 {[%clk 0:02:19]} 15. Nxg5 {[%clk 0:02:24]}  c4 {[%clk 0:02:19]} 16. Nc1 {[%clk 0:02:22]}  c3 {[%clk 0:02:14]} 17. bxc3 {[%clk 0:02:18]}  Rc8 {[%clk 0:02:12]} 18. Ne2 {[%clk 0:02:18]}  Nb6 {[%clk 0:02:08]} 19. Qd3 {[%clk 0:02:03]}  Nc4 {[%clk 0:01:51]} 20. Nf4 {[%clk 0:02:00]}  g6 {[%clk 0:01:34]} 21. a5 {[%clk 0:01:58]}  O-O {[%clk 0:01:27]} 22. Kg2 {[%clk 0:01:37]}  Rc7 {[%clk 0:01:19]} 23. Rfb1 {[%clk 0:01:36]}  Rfc8 {[%clk 0:01:16]} 24. Rb4 {[%clk 0:01:35]}  Rc6 {[%clk 0:01:01]} 25. Qe2 {[%clk 0:01:24]}  b6 {[%clk 0:00:45]} 26. Kh2 {[%clk 0:01:09]}  bxa5 {[%clk 0:00:36]} 27. Nxh5 {[%clk 0:01:07]}  Nce3 {[%clk 0:00:14]} 28. Nf6+ {[%clk 0:01:04]}  Kg7 {[%clk 0:00:14]} 29. Qxa6 {[%clk 0:01:03]}  Rxa6 {[%clk 0:00:12]} 30. fxe3 {[%clk 0:01:00]}  Rxc3 {[%clk 0:00:12]} 31. Rb7 {[%clk 0:00:51]}  Rxc2+ {[%clk 0:00:10]} 32. Kh3 {[%clk 0:00:51]}  Nh6 {[%clk 0:00:10]} 33. Rxa5 {[%clk 0:00:45]}  Rxa5 {[%clk 0:00:09]} 34. Nxe6+ {[%clk 0:00:45]}  Kh8 {[%clk 0:00:05]} 35. Rb8+ {[%clk 0:00:45]}  Ng8 {[%clk 0:00:05]} 36. Rxg8# {[%clk 0:00:44]} 1-0

[Event "December 5 Early 2023"]
[Site "https://www.chess.com"]
[Date "2023.12.05"]
[Round "10"]
[White "Kozak, Antoni"]
[Black "Gokerkan, Cem Kaan"]
[Result "1-0"]
[Board "29"]
[TimeControl "180+1"]
[WhiteFideId "21832030"]
[BlackFideId "6336760"]
[WhiteElo "2725"]
[BlackElo "2867"]
[WhiteTeam "POL"]
[BlackTeam "TUR"]
[WhiteClock "0:00:16"]
[BlackClock "0:00:02"]

1. e4 {[%clk 0:03:00]}  e5 {[%clk 0:02:59]} 2. Nf3 {[%clk 0:03:00]}  Nf6 {[%clk 0:02:59]} 3. Nc3 {[%clk 0:02:58]}  Nc6 {[%clk 0:02:59]} 4. Bb5 {[%clk 0:02:56]}  Bb4 {[%clk 0:02:59]} 5. O-O {[%clk 0:02:56]}  O-O {[%clk 0:02:58]} 6. d3 {[%clk 0:02:56]}  Bxc3 {[%clk 0:02:58]} 7. bxc3 {[%clk 0:02:56]}  d6 {[%clk 0:02:59]} 8. Re1 {[%clk 0:02:55]}  h6 {[%clk 0:02:58]} 9. d4 {[%clk 0:02:54]}  exd4 {[%clk 0:02:29]} 10. cxd4 {[%clk 0:02:51]}  a6 {[%clk 0:02:28]} 11. Bd3 {[%clk 0:02:50]}  Re8 {[%clk 0:02:25]} 12. c3 {[%clk 0:02:49]}  Bg4 {[%clk 0:02:23]} 13. Bf4 {[%clk 0:02:36]}  b5 {[%clk 0:02:06]} 14. h3 {[%clk 0:02:32]}  Bh5 {[%clk 0:02:06]} 15. g4 {[%clk 0:02:17]}  Bg6 {[%clk 0:02:00]} 16. Qc2 {[%clk 0:02:17]}  d5 {[%clk 0:01:47]} 17. e5 {[%clk 0:02:11]}  Bxd3 {[%clk 0:01:40]} 18. Qxd3 {[%clk 0:02:11]}  Ne4 {[%clk 0:01:41]} 19. Nh2 {[%clk 0:01:57]}  Qh4 {[%clk 0:01:37]} 20. Re2 {[%clk 0:01:38]}  Ne7 {[%clk 0:01:24]} 21. Kg2 {[%clk 0:01:35]}  Ng6 {[%clk 0:01:24]} 22. Bg3 {[%clk 0:01:27]}  Qg5 {[%clk 0:01:07]} 23. Qe3 {[%clk 0:01:18]}  Qd8 {[%clk 0:00:58]} 24. f4 {[%clk 0:00:53]}  f6 {[%clk 0:00:58]} 25. f5 {[%clk 0:00:52]}  Ne7 {[%clk 0:00:49]} 26. e6 {[%clk 0:00:52]}  c5 {[%clk 0:00:49]} 27. Rd1 {[%clk 0:00:49]}  Rc8 {[%clk 0:00:48]} 28. dxc5 {[%clk 0:00:48]}  Rxc5 {[%clk 0:00:47]} 29. Rd3 {[%clk 0:00:38]}  Qc8 {[%clk 0:00:43]} 30. Nf3 {[%clk 0:00:35]}  Qb7 {[%clk 0:00:29]} 31. Bd6 {[%clk 0:00:28]}  Rc6 {[%clk 0:00:17]} 32. Bxe7 {[%clk 0:00:27]}  Qxe7 {[%clk 0:00:16]} 33. Rxd5 {[%clk 0:00:22]}  Nxc3 {[%clk 0:00:16]} 34. Rd7 {[%clk 0:00:22]}  Qb4 {[%clk 0:00:08]} 35. Red2 {[%clk 0:00:17]}  h5 {[%clk 0:00:07]} 36. Rd8 {[%clk 0:00:17]}  Rc8 {[%clk 0:00:08]} 37. Rxc8 {[%clk 0:00:17]}  Rxc8 {[%clk 0:00:08]} 38. e7 {[%clk 0:00:18]}  Re8 {[%clk 0:00:05]} 39. Rd8 {[%clk 0:00:16]}  hxg4 {[%clk 0:00:01]} 40. Rxe8+ {[%clk 0:00:16]}  Kf7 {[%clk 0:00:02]} 41. Rf8# {[%clk 0:00:16]} 1-0

[Event "December 5 Early 2023"]
[Site "https://www.chess.com"]
[Date "2023.12.05"]
[Round "10"]
[White "Matinian, Nikita"]
[Black "Kuzubov, Yuriy"]
[Result "0-1"]
[Board "30"]
[TimeControl "180+1"]
[WhiteFideId "24129100"]
[BlackFideId "14112906"]
[WhiteElo "2721"]
[BlackElo "2859"]
[WhiteTeam "FID"]
[BlackTeam "UKR"]
[WhiteClock "0:00:02"]
[BlackClock "0:00:09"]

1. e4 {[%clk 0:03:00]}  c5 {[%clk 0:02:59]} 2. Nf3 {[%clk 0:03:01]}  Nc6 {[%clk 0:03:00]} 3. Bb5 {[%clk 0:03:02]}  d6 {[%clk 0:02:58]} 4. c3 {[%clk 0:03:02]}  Nf6 {[%clk 0:02:57]} 5. e5 {[%clk 0:03:00]}  dxe5 {[%clk 0:02:53]} 6. Nxe5 {[%clk 0:02:59]}  Qd5 {[%clk 0:02:43]} 7. Nxc6 {[%clk 0:02:40]}  bxc6 {[%clk 0:02:38]} 8. Be2 {[%clk 0:02:40]}  Bf5 {[%clk 0:02:09]} 9. O-O {[%clk 0:02:34]}  Rd8 {[%clk 0:02:05]} 10. Qa4 {[%clk 0:02:26]}  e5 {[%clk 0:01:58]} 11. Na3 {[%clk 0:02:12]}  Bd6 {[%clk 0:01:33]} 12. Nc4 {[%clk 0:02:05]}  e4 {[%clk 0:01:30]} 13. Nxd6+ {[%clk 0:01:59]}  Rxd6 {[%clk 0:01:26]} 14. Qxa7 {[%clk 0:01:36]}  O-O {[%clk 0:01:18]} 15. b3 {[%clk 0:01:36]}  Bg4 {[%clk 0:01:11]} 16. Bc4 {[%clk 0:01:36]}  Qh5 {[%clk 0:01:05]} 17. Ba3 {[%clk 0:01:26]}  Bf3 {[%clk 0:01:02]} 18. Rfe1 {[%clk 0:01:03]}  Ng4 {[%clk 0:00:55]} 19. h3 {[%clk 0:00:58]}  Nxf2 {[%clk 0:00:53]} 20. Qxc5 {[%clk 0:00:19]}  Nxh3+ {[%clk 0:00:51]} 21. Kh2 {[%clk 0:00:07]}  Qg4 {[%clk 0:00:19]} 22. gxf3 {[%clk 0:00:04]}  Qf4+ {[%clk 0:00:19]} 23. Kh1 {[%clk 0:00:03]}  Qxf3+ {[%clk 0:00:15]} 24. Kh2 {[%clk 0:00:04]}  Nf4 {[%clk 0:00:10]} 25. Qxc6 {[%clk 0:00:02]}  Qg2# {[%clk 0:00:09]} 0-1

[Event "December 5 Early 2023"]
[Site "https://www.chess.com"]
[Date "2023.12.05"]
[Round "10"]
[White "Finek, Vaclav"]
[Black "Novozhilov, Semen"]
[Result "1-0"]
[Board "31"]
[TimeControl "180+1"]
[WhiteFideId "23718293"]
[BlackFideId "24289167"]
[WhiteElo "2837"]
[BlackElo "2718"]
[WhiteTeam "CZE"]
[BlackTeam "RUS"]
[WhiteClock "0:00:35"]
[BlackClock "0:00:18"]

1. d4 {[%clk 0:03:00]}  Nf6 {[%clk 0:03:00]} 2. Nf3 {[%clk 0:03:00]}  e6 {[%clk 0:03:00]} 3. g3 {[%clk 0:03:00]}  c5 {[%clk 0:03:00]} 4. Bg2 {[%clk 0:03:00]}  cxd4 {[%clk 0:02:59]} 5. O-O {[%clk 0:03:00]}  d5 {[%clk 0:03:00]} 6. Nxd4 {[%clk 0:03:00]}  e5 {[%clk 0:03:00]} 7. Nb3 {[%clk 0:03:00]}  Nc6 {[%clk 0:03:00]} 8. Bg5 {[%clk 0:02:43]}  Be6 {[%clk 0:02:53]} 9. Bxf6 {[%clk 0:02:41]}  gxf6 {[%clk 0:02:54]} 10. Nc3 {[%clk 0:02:33]}  d4 {[%clk 0:02:51]} 11. Ne4 {[%clk 0:02:31]}  Be7 {[%clk 0:02:39]} 12. Nec5 {[%clk 0:02:24]}  Bc8 {[%clk 0:02:27]} 13. c3 {[%clk 0:02:13]}  dxc3 {[%clk 0:02:25]} 14. bxc3 {[%clk 0:02:13]}  O-O {[%clk 0:02:24]} 15. Qxd8 {[%clk 0:01:56]}  Rxd8 {[%clk 0:02:25]} 16. Rfd1 {[%clk 0:01:56]}  Rxd1+ {[%clk 0:02:11]} 17. Rxd1 {[%clk 0:01:57]}  Rb8 {[%clk 0:02:11]} 18. h3 {[%clk 0:01:50]}  b6 {[%clk 0:01:57]} 19. Nd7 {[%clk 0:01:46]}  Rb7 {[%clk 0:01:45]} 20. Bxc6 {[%clk 0:01:44]}  Rc7 {[%clk 0:01:45]} 21. Ba4 {[%clk 0:01:37]}  Rxc3 {[%clk 0:01:25]} 22. Nb8 {[%clk 0:01:35]}  Be6 {[%clk 0:01:22]} 23. Nc6 {[%clk 0:01:33]}  Ba3 {[%clk 0:01:20]} 24. Nxa7 {[%clk 0:01:31]}  Bxh3 {[%clk 0:01:20]} 25. Nb5 {[%clk 0:01:30]}  Rc4 {[%clk 0:01:17]} 26. Rd8+ {[%clk 0:01:13]}  Bf8 {[%clk 0:01:13]} 27. Ra8 {[%clk 0:01:13]}  h5 {[%clk 0:01:04]} 28. Nd6 {[%clk 0:00:55]}  Rc7 {[%clk 0:00:54]} 29. Ne4 {[%clk 0:00:53]}  Kg7 {[%clk 0:00:53]} 30. Nxf6 {[%clk 0:00:48]}  Kxf6 {[%clk 0:00:39]} 31. Rxf8 {[%clk 0:00:48]}  Ra7 {[%clk 0:00:40]} 32. Bb5 {[%clk 0:00:44]}  Be6 {[%clk 0:00:37]} 33. Rb8 {[%clk 0:00:41]}  Rxa2 {[%clk 0:00:37]} 34. Rxb6 {[%clk 0:00:41]}  Kg5 {[%clk 0:00:31]} 35. Nc5 {[%clk 0:00:39]}  Bf5 {[%clk 0:00:24]} 36. Bd3 {[%clk 0:00:37]}  Bg4 {[%clk 0:00:19]} 37. Ne4+ {[%clk 0:00:35]}  Kf5 {[%clk 0:00:18]} 38. Rf6# {[%clk 0:00:35]} 1-0

[Event "December 5 Early 2023"]
[Site "https://www.chess.com"]
[Date "2023.12.05"]
[Round "10"]
[White "Hayrapetyan, Hovik"]
[Black "Prohaszka, Peter"]
[Result "1-0"]
[Board "33"]
[TimeControl "180+1"]
[WhiteFideId "13302639"]
[BlackFideId "726265"]
[WhiteElo "2815"]
[BlackElo "2686"]
[WhiteTeam "ARM"]
[BlackTeam "HUN"]
[WhiteClock "0:02:05"]
[BlackClock "0:01:35"]

1. d4 {[%clk 0:03:00]}  Nf6 {[%clk 0:02:54]} 2. c4 {[%clk 0:03:00]}  g6 {[%clk 0:02:54]} 3. Nc3 {[%clk 0:03:00]}  d5 {[%clk 0:02:54]} 4. Nf3 {[%clk 0:02:59]}  Bg7 {[%clk 0:02:54]} 5. Qb3 {[%clk 0:02:58]}  dxc4 {[%clk 0:02:53]} 6. Qxc4 {[%clk 0:02:59]}  a6 {[%clk 0:02:51]} 7. e4 {[%clk 0:02:56]}  b5 {[%clk 0:02:51]} 8. Qb3 {[%clk 0:02:56]}  c5 {[%clk 0:02:51]} 9. dxc5 {[%clk 0:02:55]}  Nfd7 {[%clk 0:02:51]} 10. Be3 {[%clk 0:02:41]}  Nc6 {[%clk 0:02:47]} 11. Be2 {[%clk 0:02:33]}  O-O {[%clk 0:02:21]} 12. O-O {[%clk 0:02:32]}  Bb7 {[%clk 0:02:03]} 13. Rfd1 {[%clk 0:02:31]}  Qa5 {[%clk 0:02:00]} 14. Rxd7 {[%clk 0:02:27]}  Bc8 {[%clk 0:01:56]} 15. Rdd1 {[%clk 0:02:24]}  Be6 {[%clk 0:01:56]} 16. Nd5 {[%clk 0:02:24]}  Ra7 {[%clk 0:01:52]} 17. a3 {[%clk 0:02:21]}  Qa4 {[%clk 0:01:51]} 18. Qxa4 {[%clk 0:02:16]}  bxa4 {[%clk 0:01:52]} 19. Nd4 {[%clk 0:02:17]}  Na5 {[%clk 0:01:46]} 20. Nxe6 {[%clk 0:02:10]}  fxe6 {[%clk 0:01:47]} 21. c6 {[%clk 0:02:11]}  Raa8 {[%clk 0:01:43]} 22. Nxe7+ {[%clk 0:02:07]}  Kf7 {[%clk 0:01:44]} 23. Rd7 {[%clk 0:02:08]}  Rfd8 {[%clk 0:01:44]} 24. Rxd8 {[%clk 0:02:05]}  Rxd8 {[%clk 0:01:35]} 25. c7 {[%clk 0:02:05]} 1-0

[Event "December 5 Early 2023"]
[Site "https://www.chess.com"]
[Date "2023.12.05"]
[Round "10"]
[White "Maltsevskaya, Aleksandra"]
[Black "Weetik, Vjacheslav"]
[Result "0-1"]
[Board "36"]
[TimeControl "180+1"]
[WhiteFideId "24174041"]
[BlackFideId "4153472"]
[WhiteElo "2622"]
[BlackElo "2796"]
[WhiteTeam "POL"]
[BlackTeam "RUS"]
[WhiteClock "0:00:00"]
[BlackClock "0:00:10"]

1. Nf3 {[%clk 0:03:00]}  Nf6 {[%clk 0:02:59]} 2. g3 {[%clk 0:02:59]}  d5 {[%clk 0:03:00]} 3. Bg2 {[%clk 0:03:00]}  Bf5 {[%clk 0:03:00]} 4. O-O {[%clk 0:03:01]}  e6 {[%clk 0:03:01]} 5. d3 {[%clk 0:03:01]}  c6 {[%clk 0:03:01]} 6. b3 {[%clk 0:03:02]}  h6 {[%clk 0:03:01]} 7. Bb2 {[%clk 0:03:02]}  Bh7 {[%clk 0:02:59]} 8. Nbd2 {[%clk 0:03:01]}  Be7 {[%clk 0:03:00]} 9. e4 {[%clk 0:03:01]}  O-O {[%clk 0:02:59]} 10. Qe2 {[%clk 0:03:01]}  a5 {[%clk 0:02:59]} 11. a3 {[%clk 0:03:01]}  Na6 {[%clk 0:02:56]} 12. Ne5 {[%clk 0:03:00]}  Re8 {[%clk 0:02:56]} 13. h4 {[%clk 0:02:55]}  Bf8 {[%clk 0:02:53]} 14. g4 {[%clk 0:02:49]}  Nd7 {[%clk 0:02:48]} 15. Nxd7 {[%clk 0:02:45]}  Qxd7 {[%clk 0:02:49]} 16. g5 {[%clk 0:02:45]}  hxg5 {[%clk 0:02:47]} 17. hxg5 {[%clk 0:02:46]}  e5 {[%clk 0:02:39]} 18. f4 {[%clk 0:02:29]}  exf4 {[%clk 0:02:27]} 19. Rxf4 {[%clk 0:02:28]}  Nc5 {[%clk 0:02:18]} 20. Rh4 {[%clk 0:02:04]}  Bg6 {[%clk 0:02:17]} 21. Kf2 {[%clk 0:01:03]}  dxe4 {[%clk 0:01:57]} 22. dxe4 {[%clk 0:00:50]}  Rad8 {[%clk 0:01:19]} 23. Rah1 {[%clk 0:00:49]}  f6 {[%clk 0:01:08]} 24. Qc4+ {[%clk 0:00:33]}  Re6 {[%clk 0:01:06]} 25. Bc3 {[%clk 0:00:17]}  fxg5 {[%clk 0:00:44]} 26. Rh8+ {[%clk 0:00:17]}  Kf7 {[%clk 0:00:45]} 27. Bh3 {[%clk 0:00:10]}  b5 {[%clk 0:00:39]} 28. Bxe6+ {[%clk 0:00:08]}  Nxe6 {[%clk 0:00:40]} 29. Qe2 {[%clk 0:00:08]}  b4 {[%clk 0:00:39]} 30. Nf3 {[%clk 0:00:07]}  bxc3 {[%clk 0:00:35]} 31. Ne5+ {[%clk 0:00:07]}  Kf6 {[%clk 0:00:34]} 32. Nxd7+ {[%clk 0:00:08]}  Rxd7 {[%clk 0:00:35]} 33. e5+ {[%clk 0:00:09]}  Kf7 {[%clk 0:00:33]} 34. Rd1 {[%clk 0:00:09]}  Bc5+ {[%clk 0:00:32]} 35. Kf1 {[%clk 0:00:09]}  Rxd1+ {[%clk 0:00:13]} 36. Qxd1 {[%clk 0:00:10]}  Nd4 {[%clk 0:00:13]} 37. Qg4 {[%clk 0:00:09]}  Bxc2 {[%clk 0:00:12]} 38. Qd7+ {[%clk 0:00:09]}  Kg6 {[%clk 0:00:12]} 39. e6 {[%clk 0:00:09]}  Bd3+ {[%clk 0:00:12]} 40. Ke1 {[%clk 0:00:09]}  Nf3+ {[%clk 0:00:09]} 41. Kd1 {[%clk 0:00:00]}  c2+ {[%clk 0:00:10]} 0-1

[Event "December 5 Early 2023"]
[Site "https://www.chess.com"]
[Date "2023.12.05"]
[Round "10"]
[White "Movahed, Sina"]
[Black "Gontcharov, Vladislav"]
[Result "0-1"]
[Board "39"]
[TimeControl "180+1"]
[WhiteFideId "42520835"]
[BlackFideId "4123492"]
[WhiteElo "2918"]
[BlackElo "2645"]
[WhiteTeam "IRI"]
[BlackTeam "RUS"]
[WhiteClock "0:01:25"]
[BlackClock "0:01:17"]

1. Nf3 {[%clk 0:03:00]}  Nf6 {[%clk 0:02:56]} 2. c4 {[%clk 0:03:01]}  g6 {[%clk 0:02:56]} 3. Nc3 {[%clk 0:03:01]}  Bg7 {[%clk 0:02:56]} 4. e4 {[%clk 0:03:01]}  c5 {[%clk 0:02:53]} 5. d4 {[%clk 0:02:57]}  cxd4 {[%clk 0:02:53]} 6. Nxd4 {[%clk 0:02:58]}  Nc6 {[%clk 0:02:52]} 7. Be3 {[%clk 0:02:59]}  Ng4 {[%clk 0:02:52]} 8. Qxg4 {[%clk 0:02:58]}  Nxd4 {[%clk 0:02:52]} 9. Qd1 {[%clk 0:02:58]}  Ne6 {[%clk 0:02:52]} 10. Qd2 {[%clk 0:02:59]}  Qa5 {[%clk 0:02:52]} 11. Rc1 {[%clk 0:02:57]}  g5 {[%clk 0:02:44]} 12. Be2 {[%clk 0:02:53]}  h5 {[%clk 0:02:43]} 13. O-O {[%clk 0:02:52]}  d6 {[%clk 0:02:41]} 14. Rfd1 {[%clk 0:02:47]}  Bd7 {[%clk 0:02:37]} 15. b3 {[%clk 0:02:41]}  Rc8 {[%clk 0:02:30]} 16. Qe1 {[%clk 0:02:40]}  Be5 {[%clk 0:02:18]} 17. Bf1 {[%clk 0:02:17]}  Nf4 {[%clk 0:02:01]} 18. g3 {[%clk 0:02:05]}  Ne6 {[%clk 0:01:57]} 19. Nd5 {[%clk 0:01:56]}  Qxe1 {[%clk 0:01:56]} 20. Rxe1 {[%clk 0:01:57]}  g4 {[%clk 0:01:47]} 21. h4 {[%clk 0:01:45]}  b6 {[%clk 0:01:42]} 22. Red1 {[%clk 0:01:40]}  f6 {[%clk 0:01:40]} 23. Nf4 {[%clk 0:01:35]}  Kf7 {[%clk 0:01:35]} 24. Nd3 {[%clk 0:01:34]}  Nc5 {[%clk 0:01:27]} 25. Nxe5+ {[%clk 0:01:31]}  fxe5 {[%clk 0:01:25]} 26. Bg2 {[%clk 0:01:31]}  Be6 {[%clk 0:01:24]} 27. f4 {[%clk 0:01:29]}  gxf3 {[%clk 0:01:23]} 28. Bf4 {[%clk 0:01:25]}  exf4 {[%clk 0:01:17]} 0-1